fUST/lending_fUST_20250421
["ID","MTS","AMOUNT","RATE_DAILY","PERIOD"]
[358512534,1745225465310,-500.0,0.0002,2]
[358512535,1745225465320,-500.0,0.0002,2]
[358512536,1745225465329,-500.0,0.0002,2]
[358512537,1745225465338,-500.0,0.0002,2]
[358512538,1745225465348,-858.48,0.0002,2]
[358512539,1745225465358,-500.0,0.0002,2]
[358512540,1745225465368,-500.0,0.0002,2]
[358512541,1745225465378,-500.0,0.0002,2]
[358512542,1745225465388,-500.0,0.0002,2]
[358512543,1745225465397,-500.0,0.0002,2]
[358512544,1745225465406,-500.0,0.0002,2]
[358512545,1745225465416,-670.22,0.0002,2]
[358512546,1745225465425,-530.75,0.0002,2]
[358512547,1745225465434,-500.0,0.0002,2]
[358512548,1745225465444,-593.26,0.0002,2]
[358512549,1745225465453,-951.81,0.0002,2]
[358512550,1745225465462,-500.0,0.0002,2]
[358512551,1745225465471,-2000.0,0.0002,4]
[358512552,1745225465481,-506.44676151,0.0002,2]
[358512553,1745225465491,-500.0,0.0002,2]
[358512554,1745225465500,-319.91,0.0002,2]
[358512555,1745225465510,-500.0,0.0002,2]
[358512556,1745225465519,-500.0,0.0002,2]
[358512557,1745225465528,-500.0,0.0002,2]
[358512558,1745225465538,-15025.36,0.0002,2]
[358512559,1745225465547,-500.0,0.0002,2]
[358512560,1745225465556,-500.0,0.0002,2]
[358512561,1745225465566,-500.0,0.0002,2]
[358512562,1745225465576,-500.0,0.0002,2]
[358512563,1745225465586,-500.0,0.0002,2]
[358512564,1745225465596,-500.0,0.0002,2]
[358512565,1745225465607,-500.0,0.0002,2]
[358512566,1745225465617,-500.0,0.0002,2]
[358512567,1745225465627,-500.0,0.0002,2]
[358512568,1745225465637,-500.0,0.0002,2]
[358512569,1745225465647,-500.0,0.0002,2]
[358512570,1745225465656,-500.0,0.0002,2]
[358512571,1745225465666,-500.0,0.0002,2]
[358512572,1745225465675,-500.0,0.00020052,2]
[358512573,1745225465684,-500.0,0.00020053,2]
[358512574,1745225465693,-500.0,0.00020057,2]
[358512575,1745225465703,-500.0,0.00020087,2]
[358512576,1745225465714,-500.0,0.00020108,2]
[358512577,1745225465726,-12500.0,0.00020141,2]
[358512578,1745225465735,-12500.0,0.0002015,2]
[358512579,1745225465744,-12500.0,0.00020159,2]
[358512580,1745225465753,-12500.0,0.00020167,2]
[358512581,1745225465762,-12500.0,0.00020176,2]
[358512582,1745225465771,-12500.0,0.00020185,2]
[358512583,1745225465780,-12500.0,0.00020194,2]
[358512584,1745225465789,-12500.0,0.00020203,2]
[358512585,1745225465799,-12500.0,0.00020203,2]
[358512586,1745225465808,-12500.0,0.00020211,2]
[358512587,1745225465818,-12500.0,0.00020211,2]
[358512588,1745225465827,-12500.0,0.0002022,2]
[358512589,1745225465836,-12500.0,0.0002022,2]
[358512590,1745225465846,-12500.0,0.00020229,2]
[358512591,1745225465856,-12500.0,0.00020229,2]
[358512592,1745225465865,-12500.0,0.00020238,2]
[358512593,1745225465875,-12500.0,0.00020238,2]
[358512594,1745225465884,-536.37273213,0.00020243,2]
[358512595,1745225465895,-12500.0,0.00020247,2]
[358512596,1745225465908,-12500.0,0.00020247,2]
[358512597,1745225465917,-500.0,0.00020251,2]
[358512598,1745225465927,-12500.0,0.00020255,2]
[358512599,1745225465936,-12500.0,0.00020255,2]
[358512600,1745225465947,-12500.0,0.00020255,2]
[358512601,1745225465957,-151.0,0.00020262,2]
[358512602,1745225465967,-12500.0,0.00020264,2]
[358512603,1745225465977,-12500.0,0.00020264,2]
[358512604,1745225465986,-12500.0,0.00020264,2]
[358512605,1745225465995,-12500.0,0.00020264,2]
[358512606,1745225466004,-500.0,0.00020273,2]
[358512607,1745225466014,-500.0,0.00020273,2]
[358512608,1745225466024,-500.0,0.00020273,2]
[358512609,1745225466033,-12500.0,0.00020273,2]
[358512610,1745225466043,-12500.0,0.00020273,2]
[358512611,1745225466052,-500.0,0.00020273,2]
[358512612,1745225466061,-513.55388135,0.00020273,2]
[358512613,1745225466070,-448.71084884,0.00020273,2]
[358512614,1745225466080,-500.0,0.00020273,2]
[358512615,1745225466089,-500.0,0.00020273,2]
[358512616,1745225466099,-500.0,0.00020273,2]
[358512617,1745225466108,-500.0,0.00020273,2]
[358512618,1745225466118,-500.0,0.00020273,2]
[358512619,1745225466128,-500.0,0.00020273,2]
[358512620,1745225466137,-12500.0,0.00020273,2]
[358512621,1745225466148,-587.98,0.00020273,2]
[358512622,1745225466159,-500.0,0.00020273,2]
[358512623,1745225466171,-233.56,0.00020273,2]
[358512624,1745225466180,-500.0,0.00020273,2]
[358512625,1745225466190,-2238.45,0.00020273,2]
[358512626,1745225466200,-642.51,0.00020273,2]
[358512627,1745225466209,-500.0,0.00020273,2]
[358512628,1745225466219,-500.0,0.00020273,2]
[358512629,1745225466230,-600.27,0.00020273,2]
[358512630,1745225466239,-500.0,0.00020273,2]
[358512631,1745225466250,-500.0,0.00020273,2]
[358512632,1745225466260,-764.32,0.00020273,2]
[358512633,1745225466269,-500.0,0.00020273,2]
[358512634,1745225466279,-500.0,0.00020273,2]
[358512635,1745225466288,-500.0,0.00020273,2]
[358512636,1745225466298,-500.0,0.00020273,2]
[358512637,1745225466307,-639.41313612,0.00020273,2]
[358512638,1745225466317,-1861.44,0.00020273,2]
[358512639,1745225466326,-500.0,0.00020273,2]
[358512640,1745225466335,-500.0,0.00020273,2]
[358512641,1745225466344,-500.0,0.00020273,2]
[358512642,1745225466354,-500.0,0.00020273,2]
[358512643,1745225466364,-500.0,0.00020273,2]
[358512644,1745225466373,-500.0,0.00020273,2]
[358512645,1745225466383,-533.37653029,0.00020273,2]
[358512646,1745225466392,-500.0,0.00020273,2]
[358512647,1745225466401,-500.0,0.00020273,2]
[358512648,1745225466411,-500.0,0.00020273,2]
[358512649,1745225466420,-500.0,0.00020273,2]
[358512650,1745225466430,-593.72335132,0.00020273,2]
[358512651,1745225466440,-358.94852594,0.00020273,2]
[358512652,1745225466451,-500.0,0.00020273,2]
[358512653,1745225466463,-3826.69,0.00020273,2]
[358512654,1745225466472,-500.0,0.00020273,2]
[358512655,1745225466481,-731.81,0.00020273,2]
[358512656,1745225466491,-500.0,0.00020273,2]
[358512657,1745225466499,-678.25,0.00020273,2]
[358512658,1745225466509,-500.0,0.00020273,2]
[358512659,1745225466518,-500.0,0.00020273,2]
[358512660,1745225466527,-500.0,0.00020273,2]
[358512661,1745225466537,-500.0,0.00020273,2]
[358512662,1745225466547,-627.40973437,0.00020273,2]
[358512663,1745225466556,-760.08,0.00020273,2]
[358512664,1745225466566,-500.0,0.00020273,2]
[358512665,1745225466576,-500.0,0.00020273,2]
[358512666,1745225466585,-681.04,0.00020273,2]
[358512667,1745225466595,-500.0,0.00020273,2]
[358512668,1745225466604,-500.0,0.00020273,2]
[358512669,1745225466613,-774.86,0.00020273,2]
[358512670,1745225466623,-415.89414351,0.00020273,2]
[358512671,1745225466632,-662.75,0.00020273,2]
[358512672,1745225466641,-500.0,0.00020273,2]
[358512673,1745225466651,-504.89,0.00020273,2]
[358512674,1745225466661,-500.0,0.00020273,2]
[358512675,1745225466670,-500.0,0.00020273,2]
[358512676,1745225466680,-280.40125552,0.00020273,2]
[358512677,1745225466689,-500.0,0.00020273,2]
[358512678,1745225466699,-500.0,0.00020273,2]
[358512679,1745225466707,-413.25065439,0.00020273,2]
[358512680,1745225466717,-500.0,0.00020273,2]
[358512681,1745225466726,-500.0,0.00020273,2]
[358512682,1745225466736,-1304.79,0.00020273,2]
[358512683,1745225466745,-646.3,0.00020273,2]
[358512684,1745225466754,-500.0,0.00020273,2]
[358512685,1745225466765,-500.0,0.00020273,2]
[358512686,1745225466775,-500.0,0.00020273,2]
[358512687,1745225466785,-500.0,0.00020273,2]
[358512688,1745225466794,-500.0,0.00020273,2]
[358512689,1745225466803,-500.0,0.00020273,2]
[358512690,1745225466813,-484.14417207,0.00020273,2]
[358512691,1745225466823,-500.0,0.00020273,2]
[358512692,1745225466833,-500.0,0.00020273,2]
[358512693,1745225466843,-500.0,0.00020273,2]
[358512694,1745225466852,-12500.0,0.00020273,2]
[358512695,1745225466862,-500.0,0.00020273,2]
[358512696,1745225466872,-191.93922579,0.00020273,2]
[358512697,1745225466882,-500.0,0.00020273,2]
[358512698,1745225466892,-500.0,0.00020273,2]
[358512699,1745225466903,-500.0,0.00020273,2]
[358512700,1745225466913,-500.0,0.00020273,2]
[358512701,1745225466922,-500.0,0.00020273,2]
[358512702,1745225466932,-500.0,0.00020273,2]
[358512703,1745225466943,-500.0,0.00020273,2]
[358512704,1745225466953,-772.52,0.00020273,2]
[358512705,1745225466962,-500.0,0.00020273,2]
[358512706,1745225466972,-500.0,0.00020273,2]
[358512707,1745225466984,-500.0,0.00020273,2]
[358512708,1745225466994,-546.88,0.00020273,2]
[358512709,1745225467004,-237.51,0.00020273,2]
[358512710,1745225467106,-533.61,0.00020273,2]
[358512711,1745225467116,-500.0,0.00020273,2]
[358512712,1745225467126,-2057.86,0.00020273,2]
[358512713,1745225467136,-500.0,0.00020273,2]
[358512714,1745225467146,-500.0,0.00020273,2]
[358512715,1745225467155,-500.0,0.00020273,2]
[358512716,1745225467165,-825.83,0.00020273,2]
[358512717,1745225467174,-157.62036242,0.00020273,2]
[358512718,1745225467183,-6615.03,0.00020273,2]
[358512719,1745225467193,-500.0,0.00020273,2]
[358512720,1745225467202,-500.0,0.00020273,2]
[358512721,1745225467212,-614.64,0.00020273,2]
[358512722,1745225467221,-705.42,0.00020273,2]
[358512723,1745225467232,-895.67,0.00020273,2]
[358512724,1745225467242,-500.0,0.00020273,2]
[358512725,1745225467251,-500.0,0.00020273,2]
[358512726,1745225467262,-3992.88,0.00020273,2]
[358512727,1745225467272,-500.0,0.00020273,2]
[358512728,1745225467282,-500.0,0.00020273,2]
[358512729,1745225467292,-500.0,0.00020273,2]
[358512730,1745225467302,-500.0,0.00020273,2]
[358512731,1745225467312,-500.0,0.00020273,2]
[358512732,1745225467321,-500.0,0.00020273,2]
[358512733,1745225467331,-654.0,0.00020273,2]
[358512734,1745225467341,-500.0,0.00020273,2]
[358512735,1745225467350,-583.19069814,0.00020273,2]
[358512736,1745225467360,-500.0,0.00020273,2]
[358512737,1745225467370,-500.0,0.00020273,2]
[358512738,1745225467380,-500.0,0.00020273,2]
[358512739,1745225467391,-1292.22,0.00020273,2]
[358512740,1745225467402,-2764.9,0.00020273,2]
[358512741,1745225467413,-1767.47,0.00020273,2]
[358512742,1745225467424,-450.44748531,0.00020273,2]
[358512743,1745225467433,-500.0,0.00020273,2]
[358512744,1745225467443,-500.0,0.00020273,2]
[358512745,1745225467453,-500.0,0.00020273,2]
[358512746,1745225467462,-500.0,0.00020273,2]
[358512747,1745225467472,-500.0,0.00020273,2]
[358512748,1745225467483,-500.0,0.00020273,2]
[358512749,1745225467494,-692.63,0.00020273,2]
[358512750,1745225467504,-672.69,0.00020273,2]
[358512751,1745225467514,-507.28883389,0.00020273,2]
[358512752,1745225467523,-500.0,0.00020273,2]
[358512753,1745225467532,-500.0,0.00020273,2]
[358512754,1745225467542,-500.0,0.00020273,2]
[358512755,1745225467552,-500.0,0.00020273,2]
[358512756,1745225467561,-500.0,0.00020273,2]
[358512757,1745225467571,-500.0,0.00020273,2]
[358512758,1745225467580,-3183.06,0.00020273,2]
[358512759,1745225467589,-1517.29,0.00020273,2]
[358512760,1745225467598,-500.0,0.00020273,2]
[358512761,1745225467607,-500.0,0.00020273,2]
[358512762,1745225467616,-500.0,0.00020273,2]
[358512763,1745225467626,-500.0,0.00020273,2]
[358512764,1745225467635,-500.0,0.00020273,2]
[358512765,1745225467644,-1896.82,0.00020273,2]
[358512766,1745225467653,-500.0,0.00020273,2]
[358512767,1745225467663,-500.0,0.00020273,2]
[358512768,1745225467672,-500.0,0.00020273,2]
[358512769,1745225467682,-500.0,0.00020273,2]
[358512770,1745225467692,-500.0,0.00020273,2]
[358512771,1745225467701,-500.0,0.00020273,2]
[358512772,1745225467711,-500.0,0.00020273,2]
[358512773,1745225467721,-500.0,0.00020273,2]
[358512774,1745225467731,-9139.09,0.00020273,2]
[358512775,1745225467741,-500.0,0.00020273,2]
[358512776,1745225467750,-500.0,0.00020273,2]
[358512777,1745225467759,-500.0,0.00020273,2]
[358512778,1745225467768,-500.0,0.00020273,2]
[358512779,1745225467780,-500.0,0.00020273,2]
[358512780,1745225467790,-858.48,0.00020273,2]
[358512781,1745225467799,-500.0,0.00020273,2]
[358512782,1745225467809,-500.0,0.00020273,2]
[358512783,1745225467818,-500.0,0.00020273,2]
[358512784,1745225467828,-504.09769016,0.00020273,2]
[358512785,1745225467838,-500.0,0.00020273,2]
[358512786,1745225467847,-500.0,0.00020273,2]
[358512787,1745225467856,-670.22,0.00020273,2]
[358512788,1745225467866,-530.75,0.00020273,2]
[358512789,1745225467875,-595.91670532,0.00020273,2]
[358512790,1745225467885,-593.26,0.00020273,2]
[358512791,1745225467895,-951.81,0.00020273,2]
[358512792,1745225467907,-500.0,0.00020273,2]
[358512793,1745225467918,-504.85503618,0.00020273,2]
[358512794,1745225467927,-500.0,0.00020273,2]
[358512795,1745225467938,-500.0,0.00020273,2]
[358512796,1745225467948,-500.0,0.00020273,2]
[358512797,1745225467958,-15025.36,0.00020273,2]
[358512798,1745225467967,-500.0,0.00020273,2]
[358512799,1745225467980,-500.0,0.00020273,2]
[358512800,1745225467990,-500.0,0.00020273,2]
[358512801,1745225468000,-500.0,0.00020273,2]
[358512802,1745225468010,-500.0,0.00020273,2]
[358512803,1745225468020,-500.0,0.00020273,2]
[358512804,1745225468030,-500.0,0.00020273,2]
[358512805,1745225468040,-500.0,0.00020273,2]
[358512806,1745225468049,-500.0,0.00020273,2]
[358512807,1745225468059,-500.0,0.00020273,2]
[358512808,1745225468068,-403.46828247,0.00020273,2]
[358512809,1745225468078,-500.0,0.00020273,2]
[358512810,1745225468087,-505.8743485,0.00020273,2]
[358512811,1745225468097,-11524.08363712,0.00020273,2]
[358512812,1745225468106,-2500.0,0.00020274,2]
[358512813,1745225468117,-428.20391371,0.00020327,2]
[358512814,1745225468127,-420.0,0.00020396,2]
[358512815,1745225468137,-500.0,0.00020414,2]
[358512816,1745225468147,-500.0,0.00020452,2]
[358512817,1745225468156,-1031.80315359,0.00020497,2]
[358512818,1745225468165,-500.0,0.000205,2]
[358512819,1745225468174,-500.0,0.00020547,2]
[358512820,1745225468184,-500.0,0.00020547,2]
[358512821,1745225468193,-191.6665111,0.00020547,2]
[358512822,1745225468203,-500.0,0.00020547,2]
[358512823,1745225468213,-500.0,0.00020547,2]
[358512824,1745225468222,-516.42111623,0.00020547,2]
[358512825,1745225468231,-197.38173026,0.00020547,2]
[358512826,1745225468241,-587.98,0.00020547,2]
[358512827,1745225468250,-500.0,0.00020547,2]
[358512828,1745225468259,-322.94522557,0.00020547,2]
[358512829,1745225468268,-2238.45,0.00020547,2]
[358512830,1745225468277,-642.51,0.00020547,2]
[358512831,1745225468286,-500.0,0.00020547,2]
[358512832,1745225468295,-500.0,0.00020547,2]
[358512833,1745225468305,-600.27,0.00020547,2]
[358512834,1745225468315,-500.0,0.00020547,2]
[358512835,1745225468326,-500.0,0.00020547,2]
[358512836,1745225468336,-764.32,0.00020547,2]
[358512837,1745225468346,-357.84748764,0.00020547,2]
[358512838,1745225468357,-500.0,0.00020547,2]
[358512839,1745225468367,-508.25960313,0.00020547,2]
[358512840,1745225468376,-500.0,0.00020547,2]
[358512841,1745225468385,-1861.44,0.00020547,2]
[358512842,1745225468395,-500.0,0.00020547,2]
[358512843,1745225468404,-552.73233865,0.00020547,2]
[358512844,1745225468414,-574.17952073,0.00020547,2]
[358512845,1745225468423,-500.0,0.00020547,2]
[358512846,1745225468433,-500.0,0.00020547,2]
[358512847,1745225468442,-283.60245774,0.00020547,2]
[358512848,1745225468451,-500.0,0.00020547,2]
[358512849,1745225468460,-447.68113788,0.00020547,2]
[358512850,1745225468469,-591.16034037,0.00020547,2]
[358512851,1745225468478,-500.0,0.00020547,2]
[358512852,1745225468488,-500.0,0.00020547,2]
[358512853,1745225468498,-3826.69,0.00020547,2]
[358512854,1745225468507,-500.0,0.00020547,2]
[358512855,1745225468517,-731.81,0.00020547,2]
[358512856,1745225468526,-500.0,0.00020547,2]
[358512857,1745225468535,-678.25,0.00020547,2]
[358512858,1745225468545,-500.0,0.00020547,2]
[358512859,1745225468555,-500.0,0.00020547,2]
[358512860,1745225468564,-500.0,0.00020547,2]
[358512861,1745225468573,-500.0,0.00020547,2]
[358512862,1745225468584,-760.08,0.00020547,2]
[358512863,1745225468593,-580.37940974,0.00020547,2]
[358512864,1745225468604,-500.0,0.00020547,2]
[358512865,1745225468613,-681.04,0.00020547,2]
[358512866,1745225468622,-240.18435233,0.00020547,2]
[358512867,1745225468632,-500.0,0.00020547,2]
[358512868,1745225468642,-774.86,0.00020547,2]
[358512869,1745225468651,-662.75,0.00020547,2]
[358512870,1745225468661,-500.0,0.00020547,2]
[358512871,1745225468670,-504.89,0.00020547,2]
[358512872,1745225468680,-500.0,0.00020547,2]
[358512873,1745225468689,-500.0,0.00020547,2]
[358512874,1745225468699,-500.0,0.00020547,2]
[358512875,1745225468708,-500.0,0.00020547,2]
[358512876,1745225468717,-500.0,0.00020547,2]
[358512877,1745225468727,-1304.79,0.00020547,2]
[358512878,1745225468740,-646.3,0.00020547,2]
[358512879,1745225468750,-500.0,0.00020547,2]
[358512880,1745225468759,-500.0,0.00020547,2]
[358512881,1745225468769,-500.0,0.00020547,2]
[358512882,1745225468779,-500.0,0.00020547,2]
[358512883,1745225468788,-500.0,0.00020547,2]
[358512884,1745225468798,-500.0,0.00020547,2]
[358512885,1745225468807,-500.0,0.00020547,2]
[358512886,1745225468817,-500.0,0.00020547,2]
[358512887,1745225468826,-500.0,0.00020547,2]
[358512888,1745225468836,-500.0,0.00020547,2]
[358512889,1745225468845,-500.0,0.00020547,2]
[358512890,1745225468855,-500.0,0.00020547,2]
[358512891,1745225468864,-500.0,0.00020547,2]
[358512892,1745225468873,-500.0,0.00020547,2]
[358512893,1745225468883,-500.0,0.00020547,2]
[358512894,1745225468892,-500.0,0.00020547,2]
[358512895,1745225468904,-500.0,0.00020547,2]
[358512896,1745225468914,-772.52,0.00020547,2]
[358512897,1745225468924,-500.0,0.00020547,2]
[358512898,1745225468933,-298.02567216,0.00020547,2]
[358512899,1745225468944,-495.549551,0.00020547,2]
[358512900,1745225468953,-546.88,0.00020547,2]
[358512901,1745225468963,-533.61,0.00020547,2]
[358512902,1745225468973,-500.0,0.00020547,2]
[358512903,1745225468983,-2057.86,0.00020547,2]
[358512904,1745225468992,-500.0,0.00020547,2]
[358512905,1745225469002,-500.0,0.00020547,2]
[358512906,1745225469012,-500.0,0.00020547,2]
[358512907,1745225469022,-825.83,0.00020547,2]
[358512908,1745225469032,-6615.03,0.00020547,2]
[358512909,1745225469042,-625.91949118,0.00020547,2]
[358512910,1745225469052,-500.0,0.00020547,2]
[358512911,1745225469062,-614.64,0.00020547,2]
[358512912,1745225469071,-705.42,0.00020547,2]
[358512913,1745225469082,-895.67,0.00020547,2]
[358512914,1745225469092,-500.0,0.00020547,2]
[358512915,1745225469102,-500.0,0.00020547,2]
[358512916,1745225469111,-3992.88,0.00020547,2]
[358512917,1745225469121,-500.0,0.00020547,2]
[358512918,1745225469131,-500.0,0.00020547,2]
[358512919,1745225469140,-500.0,0.00020547,2]
[358512920,1745225469149,-500.0,0.00020547,2]
[358512921,1745225469158,-510.53577053,0.00020547,2]
[358512922,1745225469168,-500.0,0.00020547,2]
[358512923,1745225469177,-654.0,0.00020547,2]
[358512924,1745225469186,-500.0,0.00020547,2]
[358512925,1745225469195,-500.0,0.00020547,2]
[358512926,1745225469205,-500.0,0.00020547,2]
[358512927,1745225469214,-500.0,0.00020547,2]
[358512928,1745225469223,-1292.22,0.00020547,2]
[358512929,1745225469232,-2764.9,0.00020547,2]
[358512930,1745225469242,-1767.47,0.00020547,2]
[358512931,1745225469251,-500.0,0.00020547,2]
[358512932,1745225469261,-500.0,0.00020547,2]
[358512933,1745225469271,-535.39946703,0.00020547,2]
[358512934,1745225469280,-500.0,0.00020547,2]
[358512935,1745225469290,-500.0,0.00020547,2]
[358512936,1745225469300,-161.73343089,0.00020547,2]
[358512937,1745225469540,-691.49,0.00019178,2]
[358512938,1745225469551,-351.19050105,0.00020547,2]
[358512939,1745225469561,-692.63,0.00020547,2]
[358512940,1745225469571,-672.69,0.00020547,2]
[358512941,1745225469581,-504.68910285,0.00020547,2]
[358512942,1745225469591,-512.69032849,0.00020547,2]
[358512943,1745225469602,-500.0,0.00020547,2]
[358512944,1745225469611,-500.0,0.00020547,2]
[358512945,1745225469621,-481.76,0.00020547,2]
[358512946,1745225469631,-500.0,0.00020547,2]
[358512947,1745225469640,-658.20715741,0.00020547,2]
[358512948,1745225469652,-2524.85284259,0.00020547,2]
[358512949,1745225469662,-1517.29,0.00020547,2]
[358512950,1745225469671,-513.74010391,0.00020547,2]
[358512951,1745225469681,-500.0,0.00020547,2]
[358512952,1745225469691,-445.22002587,0.00020547,2]
[358512953,1745225469700,-500.0,0.00020547,2]
[358512954,1745225469710,-500.0,0.00020547,2]
[358512955,1745225469719,-1819.68375458,0.00020547,2]
[358512956,1745225470028,-691.49,0.00019178,2]
[358512957,1745225470039,-500.0,0.00019178,2]
[358512958,1745225470049,-691.49,0.00019178,2]
[358512959,1745225470058,-691.49,0.00019178,2]
[358512960,1745225470068,-691.49,0.00019178,2]
[358512961,1745225470078,-691.49,0.00019178,2]
[358512962,1745225470087,-691.49,0.00019178,2]
[358512963,1745225470098,-691.49,0.00019178,2]
[358512964,1745225470108,-691.49,0.00019178,2]
[358512965,1745225470117,-500.0,0.00019178,2]
[358512966,1745225470127,-77.13624542,0.00020547,2]
[358512967,1745225470136,-500.0,0.00020547,2]
[358512968,1745225470146,-500.0,0.00020547,2]
[358512969,1745225470156,-511.03318985,0.00020547,2]
[358512970,1745225470166,-500.0,0.00020547,2]
[358512971,1745225470177,-632.94719093,0.00020547,2]
[358512972,1745225470188,-500.0,0.00020547,2]
[358512973,1745225470199,-645.3107709,0.00020547,2]
[358512974,1745225470209,-500.0,0.00020547,2]
[358512975,1745225470219,-9139.09,0.00020547,2]
[358512976,1745225470228,-500.0,0.00020547,2]
[358512977,1745225470238,-500.0,0.00020547,2]
[358512978,1745225470247,-529.90817832,0.00020547,2]
[358512979,1745225470257,-510.97815104,0.00020547,2]
[358512980,1745225470266,-500.0,0.00020547,2]
[358512981,1745225470275,-858.48,0.00020547,2]
[358512982,1745225470285,-500.0,0.00020547,2]
[358512983,1745225470295,-500.0,0.00020547,2]
[358512984,1745225470305,-500.0,0.00020547,2]
[358512985,1745225470315,-300.81491754,0.00020547,2]
[358512986,1745225470459,-562.9493756,0.00019178,2]
[358512987,1745225470771,-128.5406244,0.00019178,2]
[358512988,1745225470781,-500.0,0.00019178,2]
[358512989,1745225470793,-171.5271866,0.00019178,2]
[358512990,1745225741962,2235.65,0.0001501,2]
[358513044,1745226632054,-168.06839654,0.0001787,2]
[358513045,1745226632063,-250.0,0.0001787,2]
[358513046,1745226632074,-850.63924185,0.0001797,2]
[358513047,1745226632084,-160.0,0.00018952,2]
[358513048,1745226632094,-363.72848084,0.00018977,2]
[358513049,1745226632104,-238.33898142,0.0001906,2]
[358513050,1745226632113,-160.0,0.00019065,2]
[358513051,1745226632123,-197.83,0.00019068,2]
[358513052,1745226632133,-160.0,0.00019072,2]
[358513053,1745226632145,-300.0,0.00019075,2]
[358513054,1745226632154,-300.0,0.00019075,2]
[358513055,1745226632164,-760.36797382,0.00019075,2]
[358513056,1745226632177,-49239.63202618,0.00019075,2]
[358513057,1745226632187,-165.90710488,0.00019077,2]
[358513058,1745226632197,-500.0,0.00019077,2]
[358513059,1745226632207,-500.0,0.00019077,2]
[358513060,1745226632216,-500.0,0.00019077,2]
[358513061,1745226632226,-500.0,0.00019077,2]
[358513062,1745226632236,-346.1728989,0.00019077,2]
[358513063,1745226632247,-500.0,0.00019077,2]
[358513064,1745226632256,-500.0,0.00019077,2]
[358513065,1745226632266,-500.0,0.00019077,2]
[358513066,1745226632276,-500.0,0.00019077,2]
[358513067,1745226632285,-500.0,0.00019077,2]
[358513068,1745226632295,-500.0,0.00019077,2]
[358513069,1745226632306,-500.0,0.00019077,2]
[358513070,1745226632316,-500.0,0.00019077,2]
[358513071,1745226632325,-500.0,0.00019077,2]
[358513072,1745226632335,-500.0,0.00019077,2]
[358513073,1745226632345,-500.0,0.00019077,2]
[358513074,1745226632354,-500.0,0.00019077,2]
[358513075,1745226632364,-500.0,0.00019077,2]
[358513076,1745226632374,-500.0,0.00019077,2]
[358513077,1745226632384,-298.235,0.00019077,2]
[358513078,1745226632394,-500.0,0.00019077,2]
[358513079,1745226632404,-500.0,0.00019077,2]
[358513080,1745226632415,-500.0,0.00019077,2]
[358513081,1745226632425,-58134.63634848,0.00019078,2]
[358513082,1745226632434,-160.0,0.00019157,2]
[358513083,1745226632445,-160.0,0.00019158,2]
[358513084,1745226632455,-160.0,0.00019158,2]
[358513085,1745226632464,-420.65680271,0.00019158,2]
[358513086,1745226632474,-729.16666667,0.00019158,2]